fUST/lending_fUST_20250722
["ID","MTS","AMOUNT","RATE_DAILY","PERIOD"]
[373907414,1753149040757,-460.0,0.00017545,2]
[373907416,1753149040767,-460.0,0.00017545,2]
[373907418,1753149040777,-460.0,0.00017545,2]
[373907420,1753149040786,-460.0,0.00017545,2]
[373907422,1753149040796,-461.20432561,0.00017545,2]
[373907424,1753149040805,-262.91907297,0.00017545,2]
[373907426,1753149040815,-460.0,0.00017545,2]
[373907428,1753149040824,-460.0,0.00017545,2]
[373907430,1753149040834,-464.93224777,0.00017545,2]
[373907432,1753149040844,-462.26208291,0.00017545,2]
[373907434,1753149040854,-462.0733241,0.00017545,2]
[373907437,1753149040864,-460.0,0.00017545,2]
[373907439,1753149040874,-4293.78,0.00017545,2]
[373907441,1753149040883,-1142.08,0.00017545,2]
[373907443,1753149040893,-737.82,0.00017545,2]
[373907445,1753149040902,-460.0,0.00017545,2]
[373907447,1753149040912,-460.0,0.00017545,2]
[373907449,1753149040921,-3243.66,0.00017545,2]
[373907451,1753149040930,-460.0,0.00017545,2]
[373907453,1753149040940,-460.0,0.00017545,2]
[373907455,1753149040950,-711.26,0.00017545,2]
[373907457,1753149040959,-460.0,0.00017545,2]
[373907459,1753149040969,-1840.61,0.00017545,2]
[373907461,1753149040978,-619.83,0.00017545,2]
[373907463,1753149040988,-916.52,0.00017545,2]
[373907465,1753149040998,-3922.95,0.00017545,2]
[373907467,1753149041009,-460.0,0.00017545,2]
[373907469,1753149041018,-460.35428393,0.00017554,2]
[373907471,1753149041028,-461.80993138,0.00017554,2]
[373907473,1753149041037,-248.96851732,0.00017554,2]
[373907475,1753149041046,-460.86785702,0.00017554,2]
[373907477,1753149041056,-461.40322601,0.00017554,2]
[373907479,1753149041065,-206.4509878,0.00017554,2]
[373907481,1753149041074,-462.97162279,0.00017554,2]
[373907483,1753149041083,-461.03525756,0.00017554,2]
[373907485,1753149041093,-460.0,0.00017554,2]
[373907487,1753149041102,-462.37703652,0.00017554,2]
[373907489,1753149041111,-460.71765756,0.00017554,2]
[373907491,1753149041120,-461.11153821,0.00017554,2]
[373907493,1753149041129,-462.96762355,0.00017554,2]
[373907495,1753149041138,-462.93405833,0.00017554,2]
[373907497,1753149041147,-464.76672873,0.00017554,2]
[373907499,1753149041157,-460.80074211,0.00017554,2]
[373907501,1753149041166,-460.0,0.00017554,2]
[373907503,1753149041176,-209.26569323,0.00017554,2]
[373907505,1753149041185,-460.0,0.00017554,2]
[373907507,1753149041194,-460.71918066,0.00017554,2]
[373907509,1753149041203,-460.0,0.00017554,2]
[373907511,1753149041212,-460.96692359,0.00017554,2]
[373907513,1753149041221,-460.0,0.00017554,2]
[373907515,1753149041230,-460.0,0.00017554,2]
[373907517,1753149041239,-462.5562116,0.00017554,2]
[373907519,1753149041249,-464.2091238,0.00017554,2]
[373907521,1753149041259,-461.50530099,0.00017554,2]
[373907523,1753149041268,-460.0,0.00017554,2]
[373907525,1753149041277,-462.74039873,0.00017554,2]
[373907527,1753149041286,-354.40531392,0.00017554,2]
[373907529,1753149041295,-460.0,0.00017554,2]
[373907531,1753149041304,-463.96471218,0.00017554,2]
[373907533,1753149041313,-460.0,0.00017554,2]
[373907535,1753149041322,-460.0,0.00017554,2]
[373907537,1753149041331,-462.97388186,0.00017554,2]
[373907539,1753149041340,-460.0,0.00017554,2]
[373907541,1753149041351,-460.0,0.00017554,2]
[373907543,1753149041360,-460.0,0.00017554,2]
[373907545,1753149041369,-460.0,0.00017554,2]
[373907547,1753149041379,-460.0,0.00017554,2]
[373907549,1753149041388,-466.80995854,0.00017554,2]
[373907551,1753149041397,-460.0,0.00017554,2]
[373907553,1753149041407,-460.0,0.00017554,2]
[373907555,1753149041416,-460.0,0.00017554,2]
[373907557,1753149041425,-460.0,0.00017554,2]
[373907560,1753149041443,-460.0,0.00017554,2]
[373907562,1753149041457,-461.93556914,0.00017554,2]
[373907565,1753149041467,-460.0,0.00017554,2]
[373907567,1753149041480,-460.0,0.00017554,2]
[373907569,1753149041491,-461.22959346,0.00017554,2]
[373907571,1753149041501,-460.0,0.00017554,2]
[373907573,1753149041511,-462.62663631,0.00017554,2]
[373907575,1753149041521,-463.11250708,0.00017554,2]
[373907577,1753149041531,-460.0,0.00017554,2]
[373907579,1753149041541,-460.0,0.00017554,2]
[373907581,1753149041551,-500.0,0.00017554,2]
[373907584,1753149041561,-500.0,0.00017554,2]
[373907586,1753149041570,-500.0,0.00017554,2]
[373907588,1753149041581,-464.25980332,0.00017554,2]
[373907590,1753149041591,-464.86338035,0.00017554,2]
[373907592,1753149041605,-460.0,0.00017554,2]
[373907594,1753149041614,-460.0,0.00017554,2]
[373907596,1753149041624,-460.0,0.00017554,2]
[373907598,1753149041634,-460.0,0.00017554,2]
[373907600,1753149041644,-424.18744738,0.00017554,2]
[373907602,1753149041654,-460.0,0.00017554,2]
[373907604,1753149041663,-460.0,0.00017554,2]
[373907606,1753149041674,-460.0,0.00017554,2]
[373907608,1753149041684,-460.0,0.00017554,2]
[373907610,1753149041696,-460.0,0.00017554,2]
[373907612,1753149041706,-453.73691368,0.00017554,2]
[373907614,1753149041716,-460.0,0.00017554,2]
[373907616,1753149041726,-460.0,0.00017554,2]
[373907618,1753149041735,-460.0,0.00017554,2]
[373907620,1753149041746,-460.0,0.00017554,2]
[373907621,1753149041756,-461.57323936,0.00017554,2]
[373907622,1753149041766,-460.0,0.00017554,2]
[373907623,1753149041777,-460.0,0.00017554,2]
[373907624,1753149041787,-460.0,0.00017554,2]
[373907625,1753149041797,-460.0,0.00017554,2]
[373907626,1753149041807,-462.35504587,0.00017554,2]
[373907627,1753149041817,-460.0,0.00017554,2]
[373907628,1753149041827,-460.0,0.00017554,2]
[373907629,1753149041837,-460.0,0.00017554,2]
[373907630,1753149041847,-460.0,0.00017554,2]
[373907631,1753149041857,-460.0,0.00017554,2]
[373907633,1753149041867,-473.06,0.00017554,2]
[373907634,1753149041877,-462.33930787,0.00017554,2]
[373907635,1753149041887,-460.0,0.00017554,2]
[373907637,1753149041897,-821.49,0.00017554,2]
[373907639,1753149041907,-460.0,0.00017554,2]
[373907641,1753149041917,-596.28,0.00017554,2]
[373907643,1753149041927,-1145.69,0.00017554,2]
[373907645,1753149041936,-460.0,0.00017554,2]
[373907647,1753149041946,-747.45,0.00017554,2]
[373907649,1753149041955,-460.0,0.00017554,2]
[373907651,1753149041965,-460.0,0.00017554,2]
[373907653,1753149041974,-460.0,0.00017554,2]
[373907655,1753149041985,-468.13278301,0.00017554,2]
[373907657,1753149041995,-460.0,0.00017554,2]
[373907659,1753149042005,-460.43069633,0.00017554,2]
[373907661,1753149042014,-460.0,0.00017554,2]
[373907663,1753149042024,-460.0,0.00017554,2]
[373907665,1753149042033,-460.51659652,0.00017554,2]
[373907667,1753149042043,-460.0,0.00017554,2]
[373907669,1753149042052,-460.0,0.00017554,2]
[373907671,1753149042062,-460.0,0.00017554,2]
[373907673,1753149042076,-551.28,0.00017554,2]
[373907675,1753149042086,-460.0,0.00017554,2]
[373907677,1753149042095,-320.01122144,0.00017554,2]
[373907680,1753149042105,-460.0,0.00017554,2]
[373907681,1753149042115,-461.44089258,0.00017554,2]
[373907683,1753149042125,-1052.31,0.00017554,2]
[373907686,1753149042135,-460.0,0.00017554,2]
[373907688,1753149042145,-460.0,0.00017554,2]
[373907690,1753149042155,-460.0,0.00017554,2]
[373907692,1753149042164,-460.0,0.00017554,2]
[373907694,1753149042174,-1118.99,0.00017554,2]
[373907696,1753149042184,-460.0,0.00017554,2]
[373907698,1753149042193,-460.0,0.00017554,2]
[373907700,1753149042203,-460.0,0.00017554,2]
[373907702,1753149042213,-460.0,0.00017554,2]
[373907704,1753149042223,-460.72466294,0.00017554,2]
[373907706,1753149042232,-460.0,0.00017554,2]
[373907708,1753149042242,-461.01187929,0.00017554,2]
[373907710,1753149042252,-460.86319,0.00017554,2]
[373907712,1753149042261,-959.83,0.00017554,2]
[373907714,1753149042271,-460.0,0.00017554,2]
[373907716,1753149042281,-460.0,0.00017554,2]
[373907718,1753149042291,-461.47037088,0.00017554,2]
[373907720,1753149042300,-1634.35,0.00017554,2]
[373907723,1753149042310,-992.41,0.00017554,2]
[373907726,1753149042320,-460.0,0.00017554,2]
[373907729,1753149042330,-460.0,0.00017554,2]
[373907732,1753149042341,-461.17617279,0.00017554,2]
[373907735,1753149042350,-460.0,0.00017554,2]
[373907738,1753149042360,-460.0,0.00017554,2]
[373907741,1753149042372,-460.0,0.00017554,2]
[373907743,1753149042383,-460.0,0.00017554,2]
[373907745,1753149042392,-460.0,0.00017554,2]
[373907747,1753149042402,-460.73406024,0.00017554,2]
[373907749,1753149042411,-460.0,0.00017554,2]
[373907751,1753149042421,-460.0,0.00017554,2]
[373907753,1753149042431,-461.1238697,0.00017554,2]
[373907755,1753149042441,-460.93969887,0.00017554,2]
[373907757,1753149042451,-460.0,0.00017554,2]
[373907760,1753149042460,-460.0,0.00017554,2]
[373907762,1753149042470,-460.0,0.00017554,2]
[373907764,1753149042480,-462.73715295,0.00017554,2]
[373907766,1753149042489,-460.0,0.00017554,2]
[373907768,1753149042500,-460.0,0.00017554,2]
[373907771,1753149042511,-460.0,0.00017554,2]
[373907773,1753149042520,-460.47335228,0.00017554,2]
[373907774,1753149042530,-460.0,0.00017554,2]
[373907777,1753149042539,-576.88,0.00017554,2]
[373907781,1753149042550,-460.0,0.00017554,2]
[373907783,1753149042559,-500.0,0.00017555,2]
[373907785,1753149042568,-500.0,0.00017555,2]
[373907787,1753149042578,-500.0,0.00017555,2]
[373907789,1753149042588,-192.75154239,0.00017555,2]
[373907791,1753149042600,-500.0,0.00017555,2]
[373907793,1753149042609,-460.0,0.00017555,2]
[373907795,1753149042618,-460.0,0.00017555,2]
[373907797,1753149042628,-460.0,0.00017555,2]
[373907799,1753149042637,-460.0,0.00017555,2]
[373907801,1753149042649,-460.0,0.00017555,2]
[373907803,1753149042658,-548.16993642,0.00017555,2]
[373907805,1753149042668,-239.75690095,0.00017555,2]
[373907807,1753149042678,-461.72658702,0.00017555,2]
[373907809,1753149042687,-460.0,0.00017555,2]
[373907811,1753149042699,-464.29757395,0.00017555,2]
[373907813,1753149042708,-460.0,0.00017555,2]
[373907815,1753149042718,-460.0,0.00017555,2]
[373907817,1753149042727,-460.0,0.00017555,2]
[373907819,1753149042736,-1002.82237932,0.00017555,2]
[373907821,1753149042747,-500.0,0.00017555,2]
[373907823,1753149042756,-500.0,0.00017555,2]
[373907825,1753149042766,-500.0,0.00017555,2]
[373907827,1753149042775,-500.0,0.00017555,2]
[373907829,1753149042785,-500.0,0.00017555,2]
[373907831,1753149042795,-500.0,0.00017555,2]
[373907833,1753149042805,-500.0,0.00017555,2]
[373907835,1753149042814,-357.11951011,0.00017555,2]
[373907838,1753149042834,-142.88048989,0.00017555,2]
[373907840,1753149042845,-500.0,0.00017555,2]
[373907842,1753149042854,-500.0,0.00017555,2]
[373907844,1753149042864,-500.0,0.00017555,2]
[373907847,1753149042874,-500.0,0.00017555,2]
[373907849,1753149042884,-500.0,0.00017555,2]
[373907851,1753149042894,-500.0,0.00017555,2]
[373907853,1753149042904,-871.91,0.00017555,2]
[373907855,1753149042913,-904.72213831,0.00017555,2]
[373907857,1753149042925,-88.49786169,0.00017555,2]
[373907859,1753149042935,-940.17,0.00017555,2]
[373907878,1753149043115,-460.0,0.00017555,2]
[373907880,1753149043124,-460.0,0.00017555,2]
[373907882,1753149043134,-809.11,0.00017555,2]
[373907884,1753149043143,-648.06,0.00017555,2]
[373907886,1753149043153,-1001.71,0.00017555,2]
[373907888,1753149043162,-989.78,0.00017555,2]
[373907890,1753149043171,-35716.17372186,0.00017556,2]
[373907897,1753149043231,-35340.00000001,0.00017556,2]
[373907899,1753149043244,-23987.95066669,0.00017556,2]
[373907901,1753149043256,-186537.87096507,0.00017556,2]
[373907903,1753149043266,-500.0,0.00017572,2]
[373907905,1753149043276,-500.0,0.00017573,2]
[373907907,1753149043286,-501.15176278,0.00017573,2]
[373907909,1753149043295,-500.0,0.00017573,2]
[373907911,1753149043305,-503.5588625,0.00017573,2]
[373907913,1753149043315,-500.44109099,0.00017573,2]
[373907914,1753149043324,-505.30271024,0.00017573,2]
[373907915,1753149043333,-502.13258244,0.00017573,2]
[373907916,1753149043343,-500.0,0.00017573,2]
[373907917,1753149043352,-230.49039423,0.00017573,2]
[373907918,1753149043362,-501.06876292,0.00017573,2]
[373907919,1753149043371,-500.0,0.00017573,2]
[373907920,1753149043380,-500.98109667,0.00017573,2]
[373907921,1753149043391,-642.64119502,0.0001763,2]
[373907922,1753149043401,-500.0,0.00017653,2]
[373907923,1753149043410,-626.85372937,0.00017653,2]
[373907924,1753149043420,-461.15319863,0.00017654,2]
[373907925,1753149043429,-460.0,0.00017654,2]
[373907926,1753149043438,-462.05508425,0.00017654,2]
[373907927,1753149043447,-460.0,0.00017654,2]
[373907928,1753149043457,-460.0,0.00017654,2]
[373907929,1753149043466,-460.0,0.00017654,2]
[373907930,1753149043475,-460.0,0.00017654,2]
[373907931,1753149043485,-460.0,0.00017654,2]
[373907932,1753149043495,-461.13333049,0.00017654,2]
[373907933,1753149043504,-461.80574713,0.00017654,2]
[373907934,1753149043514,-460.0,0.00017654,2]
[373907935,1753149043524,-460.0,0.00017654,2]
[373907936,1753149043533,-461.23990033,0.00017654,2]
[373907937,1753149043543,-482.2248724,0.00017654,2]
[373907938,1753149043561,-460.0,0.00017654,2]
[373907939,1753149043574,-298.15492955,0.00017654,2]
[373907940,1753149043584,-461.11525908,0.00017654,2]
[373907941,1753149043596,-460.0,0.00017654,2]
[373907942,1753149043607,-461.67249656,0.00017654,2]
[373907943,1753149043617,-460.0,0.00017654,2]
[373907944,1753149043627,-464.84897141,0.00017654,2]
[373907945,1753149043638,-461.14030391,0.00017654,2]
[373907946,1753149043648,-464.4710851,0.00017654,2]
[373907947,1753149043658,-461.42792457,0.00017654,2]
[373907948,1753149043669,-460.0,0.00017654,2]
[373907949,1753149043679,-460.0,0.00017654,2]
[373907950,1753149043689,-461.41203,0.00017654,2]
[373907951,1753149043699,-461.46978179,0.00017654,2]
[373907952,1753149043709,-460.0,0.00017654,2]
[373907953,1753149043719,-463.76648307,0.00017654,2]
[373907954,1753149043729,-449.61728805,0.00017654,2]
[373907955,1753149043739,-461.99227837,0.00017654,2]
[373907956,1753149043750,-460.0,0.00017654,2]
[373907957,1753149043760,-461.14843296,0.00017654,2]
[373907958,1753149043770,-461.30093781,0.00017654,2]
[373907959,1753149043780,-460.0,0.00017654,2]
[373907960,1753149043791,-460.0,0.00017654,2]
[373907961,1753149043801,-462.24421506,0.00017654,2]
[373907963,1753149043812,-460.97895807,0.00017654,2]
[373907965,1753149043822,-460.0,0.00017654,2]
[373907967,1753149043834,-467.28486166,0.00017654,2]
[373907969,1753149043844,-460.0,0.00017654,2]
[373907971,1753149043854,-460.0,0.00017654,2]
[373907973,1753149043864,-460.0,0.00017654,2]
[373907975,1753149043874,-461.74569961,0.00017654,2]
[373907977,1753149043884,-463.17606369,0.00017654,2]
[373907980,1753149043896,-549.45476438,0.00017654,2]
[373907982,1753149043907,-460.0,0.00017654,2]
[373907984,1753149043916,-460.0,0.00017654,2]
[373907986,1753149043926,-460.53532639,0.00017654,2]
[373907988,1753149043935,-152.58843997,0.00017654,2]
[373907990,1753149043944,-461.451745,0.00017654,2]
[373907992,1753149043954,-463.73097418,0.00017654,2]
[373907993,1753149043963,-462.98513851,0.00017654,2]
[373907994,1753149043973,-460.0,0.00017654,2]
[373907995,1753149043982,-460.0,0.00017654,2]
[373907996,1753149043993,-461.14236931,0.00017654,2]
[373907997,1753149044005,-460.0,0.00017654,2]
[373907998,1753149044015,-462.1976731,0.00017654,2]
[373907999,1753149044024,-461.19406109,0.00017654,2]
[373908000,1753149044034,-462.1658816,0.00017654,2]
[373908001,1753149044044,-460.0,0.00017654,2]
[373908002,1753149044054,-460.0,0.00017654,2]
[373908003,1753149044064,-461.6747755,0.00017654,2]
[373908004,1753149044074,-463.50899541,0.00017654,2]
[373908005,1753149044085,-460.0,0.00017654,2]
[373908006,1753149044094,-460.0,0.00017654,2]
[373908007,1753149044104,-460.0,0.00017654,2]
[373908008,1753149044113,-460.0,0.00017654,2]
[373908009,1753149044123,-460.0,0.00017654,2]
[373908010,1753149044132,-462.37103433,0.00017654,2]
[373908011,1753149044141,-579.45461188,0.00017654,2]
[373908012,1753149044151,-461.51313865,0.00017654,2]
[373908013,1753149044160,-460.0,0.00017654,2]
[373908014,1753149044169,-460.0,0.00017654,2]
[373908015,1753149044178,-460.0,0.00017654,2]
[373908016,1753149044188,-461.29578883,0.00017654,2]
[373908017,1753149044197,-468.89325629,0.00017654,2]
[373908018,1753149044206,-463.81759945,0.00017654,2]
[373908019,1753149044215,-460.0,0.00017654,2]
[373908020,1753149044225,-460.0,0.00017654,2]
[373908021,1753149044234,-460.0,0.00017654,2]
[373908022,1753149044243,-1043.95,0.00017654,2]
[373908023,1753149044253,-344.38385229,0.00017654,2]
[373908024,1753149044262,-877.18,0.00017654,2]
[373908026,1753149044271,-498.95,0.00017654,2]
[373908027,1753149044281,-478.86,0.00017654,2]
[373908028,1753149044290,-461.74847044,0.00017654,2]
[373908030,1753149044300,-460.0,0.00017654,2]
[373908032,1753149044310,-462.56280889,0.00017654,2]
[373908034,1753149044320,-460.88614258,0.00017654,2]
[373908036,1753149044330,-460.72726183,0.00017654,2]
[373908039,1753149044340,-460.0,0.00017654,2]
[373908041,1753149044349,-460.0,0.00017654,2]
[373908043,1753149044360,-460.0,0.00017654,2]
[373908045,1753149044369,-460.0,0.00017654,2]
[373908047,1753149044378,-460.0,0.00017654,2]
[373908049,1753149044388,-461.74177327,0.00017654,2]
[373908051,1753149044397,-463.40244554,0.00017654,2]
[373908053,1753149044406,-461.25907096,0.00017654,2]
[373908055,1753149044415,-540.85090374,0.00017654,2]
[373908057,1753149044425,-461.07207443,0.00017654,2]
[373908059,1753149044434,-460.0,0.00017654,2]
[373908061,1753149044443,-462.95465511,0.00017654,2]
[373908063,1753149044453,-460.0,0.00017654,2]
[373908065,1753149044462,-462.20266952,0.00017654,2]
[373908066,1753149044472,-461.48642431,0.00017654,2]
[373908067,1753149044481,-394.52596481,0.00017654,2]
[373908068,1753149044492,-460.0,0.00017654,2]
[373908069,1753149044503,-1076.13,0.00017654,2]
[373908070,1753149044513,-460.0,0.00017654,2]
[373908071,1753149044523,-460.0,0.00017654,2]
[373908072,1753149044532,-460.0,0.00017654,2]
[373908073,1753149044542,-460.0,0.00017654,2]
[373908074,1753149044551,-460.0,0.00017654,2]
[373908075,1753149044560,-460.0,0.00017654,2]
[373908076,1753149044570,-460.0,0.00017654,2]
[373908077,1753149044580,-463.89771558,0.00017654,2]
[373908078,1753149044591,-460.0,0.00017654,2]
[373908079,1753149044605,-460.0,0.00017654,2]
[373908080,1753149044615,-462.06233194,0.00017654,2]
[373908081,1753149044626,-460.0,0.00017654,2]
[373908082,1753149044637,-460.0,0.00017654,2]
[373908083,1753149044647,-460.0,0.00017654,2]
[373908084,1753149044656,-461.71465662,0.00017654,2]
[373908086,1753149044665,-460.0,0.00017654,2]
[373908088,1753149044676,-460.0,0.00017654,2]
[373908090,1753149044686,-461.55101306,0.00017654,2]
[373908092,1753149044695,-460.0,0.00017654,2]
[373908094,1753149044705,-460.0,0.00017654,2]
[373908096,1753149044715,-460.0,0.00017654,2]
[373908097,1753149044725,-460.0,0.00017654,2]
[373908099,1753149044734,-462.54360865,0.00017654,2]
[373908100,1753149044743,-545.13,0.00017654,2]
[373908102,1753149044753,-500.0,0.00017654,2]
[373908103,1753149044763,-460.0,0.00017654,2]
[373908105,1753149044772,-460.0,0.00017654,2]
[373908106,1753149044782,-315.77007316,0.00017654,2]
[373908107,1753149044792,-500.0,0.00017654,2]
[373908108,1753149044802,-460.0,0.00017654,2]
[373908109,1753149044811,-460.99829227,0.00017654,2]
[373908110,1753149044821,-460.0,0.00017654,2]
[373908112,1753149044832,-460.0,0.00017654,2]
[373908113,1753149044843,-460.0,0.00017654,2]
[373908115,1753149044853,-460.0,0.00017654,2]
[373908117,1753149044863,-460.0,0.00017654,2]
[373908119,1753149044873,-461.70160687,0.00017654,2]
[373908120,1753149044884,-460.0,0.00017654,2]
[373908121,1753149044894,-460.0,0.00017654,2]
[373908122,1753149044905,-460.0,0.00017654,2]
[373908123,1753149044917,-460.0,0.00017654,2]
[373908124,1753149044930,-460.70624162,0.00017654,2]
[373908125,1753149044943,-460.0,0.00017654,2]
[373908126,1753149044955,-460.0,0.00017654,2]
[373908127,1753149044966,-460.0,0.00017654,2]
[373908128,1753149044976,-460.95230172,0.00017654,2]
[373908130,1753149044986,-460.0,0.00017654,2]
[373908131,1753149044996,-460.0,0.00017654,2]
[373908133,1753149045007,-535.8635729,0.00017654,2]
[373908134,1753149045018,-461.81036354,0.00017654,2]
[373908135,1753149045028,-460.0,0.00017654,2]
[373908136,1753149045038,-461.91869197,0.00017654,2]
[373908137,1753149045047,-460.0,0.00017654,2]
[373908138,1753149045058,-460.0,0.00017654,2]
[373908139,1753149045068,-460.0,0.00017654,2]
[373908140,1753149045077,-282.74598011,0.00017654,2]
[373908141,1753149045087,-1332.69,0.00017654,2]
[373908142,1753149045097,-460.0,0.00017654,2]
[373908143,1753149045107,-460.0,0.00017654,2]
[373908144,1753149045116,-433.75656594,0.00017654,2]
[373908145,1753149045126,-460.0,0.00017654,2]
[373908146,1753149045135,-2746.26,0.00017654,2]
[373908147,1753149045145,-460.0,0.00017654,2]
[373908148,1753149045155,-354.56005267,0.00017654,2]
[373908149,1753149045164,-460.0,0.00017654,2]
[373908150,1753149045174,-460.0,0.00017654,2]
[373908151,1753149045184,-460.0,0.00017654,2]
[373908152,1753149045193,-460.0,0.00017654,2]
[373908153,1753149045203,-460.0,0.00017654,2]
[373908154,1753149045212,-460.0,0.00017654,2]
[373908155,1753149045223,-460.0,0.00017654,2]
[373908156,1753149045233,-460.0,0.00017654,2]
[373908157,1753149045243,-460.0,0.00017654,2]
[373908158,1753149045254,-460.0,0.00017654,2]
[373908159,1753149045265,-460.0,0.00017654,2]
[373908160,1753149045275,-460.0,0.00017654,2]
[373908162,1753149045284,-465.85290375,0.00017654,2]
[373908163,1753149045294,-462.41076621,0.00017654,2]
[373908164,1753149045303,-460.0,0.00017654,2]
[373908165,1753149045312,-460.0,0.00017654,2]
[373908166,1753149045321,-573.82070532,0.00017654,2]
[373908168,1753149045331,-460.0,0.00017654,2]
[373908169,1753149045343,-460.0,0.00017654,2]
[373908171,1753149045352,-548.76,0.00017654,2]
[373908173,1753149045363,-462.44040617,0.00017654,2]
[373908175,1753149045372,-460.0,0.00017654,2]
[373908177,1753149045383,-460.0,0.00017654,2]
[373908179,1753149045392,-781.07,0.00017654,2]
[373908181,1753149045401,-460.0,0.00017654,2]
[373908183,1753149045411,-460.0,0.00017654,2]
[373908185,1753149045421,-460.0,0.00017654,2]
[373908188,1753149045431,-460.0,0.00017654,2]
[373908191,1753149045441,-462.22632376,0.00017654,2]
[373908193,1753149045451,-460.0,0.00017654,2]
[373908195,1753149045461,-460.0,0.00017654,2]
[373908197,1753149045471,-463.22383427,0.00017654,2]
[373908199,1753149045480,-460.0,0.00017654,2]
[373908201,1753149045489,-460.0,0.00017654,2]
[373908203,1753149045500,-462.98459397,0.00017654,2]
[373908205,1753149045510,-462.81341926,0.00017654,2]
[373908206,1753149045519,-460.0,0.00017654,2]
[373908208,1753149045528,-1122.76,0.00017654,2]
[373908214,1753149045584,-465.16191712,0.00017654,2]
[373908216,1753149045595,-462.8660783,0.00017654,2]
[373908218,1753149045606,-460.0,0.00017654,2]
[373908219,1753149045616,-460.0,0.00017654,2]
[373908221,1753149045625,-460.0,0.00017654,2]
[373908223,1753149045636,-461.37703681,0.00017654,2]
[373908225,1753149045645,-460.0,0.00017654,2]
[373908227,1753149045655,-460.0,0.00017654,2]
[373908230,1753149045665,-460.0,0.00017654,2]
[373908231,1753149045674,-374.90183988,0.00017654,2]
[373908233,1753149045687,-462.05166162,0.00017654,2]
[373908235,1753149045696,-460.0,0.00017654,2]
[373908237,1753149045705,-460.0,0.00017654,2]
[373908239,1753149045714,-461.84142128,0.00017654,2]
[373908241,1753149045724,-460.0,0.00017654,2]
[373908243,1753149045734,-460.0,0.00017654,2]
[373908245,1753149045743,-460.0,0.00017654,2]
[373908247,1753149045754,-460.0,0.00017654,2]
[373908249,1753149045764,-460.0,0.00017654,2]
[373908251,1753149045773,-460.0,0.00017654,2]
[373908253,1753149045782,-610.2,0.00017654,2]
[373908255,1753149045792,-460.0,0.00017654,2]
[373908257,1753149045801,-500.0,0.00017655,2]
[373908259,1753149045812,-500.0,0.00017655,2]
[373908261,1753149045821,-574.41653545,0.00017655,2]
[373908263,1753149045832,-460.0,0.00017655,2]
[373908265,1753149045841,-1305.95,0.00017655,2]
[373908267,1753149045851,-781.07,0.00017655,2]
[373908269,1753149045860,-781.07,0.00017655,2]
[373908271,1753149045869,-781.07,0.00017655,2]
[373908273,1753149045879,-460.98195777,0.00017656,2]
[373908275,1753149045888,-460.0,0.00017656,2]
[373908277,1753149045898,-460.0,0.00017656,2]
[373908279,1753149045907,-460.0,0.00017656,2]
[373908281,1753149045917,-460.0,0.00017656,2]
[373908283,1753149045926,-460.0,0.00017656,2]
[373908285,1753149045936,-463.39966426,0.00017656,2]
[373908287,1753149045945,-460.53309415,0.00017656,2]
[373908289,1753149045955,-462.42558212,0.00017656,2]
[373908291,1753149045964,-460.0,0.00017656,2]
[373908293,1753149045974,-460.0,0.00017656,2]